fUSD/lending_fUSD_20250404
["ID","MTS","AMOUNT","RATE_DAILY","PERIOD"]
[357105546,1743742303548,-1000.0,0.00057,120]
[357105547,1743742303557,-163.54366252,0.00057,60]
[357105548,1743742303566,-8086.92,0.00057,60]
[357105549,1743742303575,-2000.06136903,0.00057,120]
[357105550,1743742303585,-1000000.0,0.00057,120]
[357105551,1743742303594,-1000.0,0.00057,2]
[357105552,1743742303603,-40715.57,0.0005714,30]
[357105553,1743742303612,-1054.76,0.00057307,2]
[357105554,1743742303622,-150.0,0.00057369,120]
[357105555,1743742303632,-400.0,0.000574,120]
[357105556,1743742303641,-443.0,0.00057534,90]
[357105557,1743742303650,-443.0,0.00057534,90]
[357105558,1743742303659,-443.0,0.00057534,90]
[357105559,1743742303669,-443.0,0.00057534,90]
[357105560,1743742303678,-443.0,0.00057534,90]
[357105561,1743742303687,-443.0,0.00057534,90]
[357105562,1743742303696,-443.0,0.00057534,90]
[357105563,1743742303705,-443.0,0.00057534,90]
[357105564,1743742303714,-443.0,0.00057534,90]
[357105565,1743742303724,-443.0,0.00057534,90]
[357105566,1743742303733,-443.0,0.00057534,90]
[357105567,1743742303742,-443.0,0.00057534,90]
[357105568,1743742303751,-443.0,0.00057534,90]
[357105569,1743742303761,-443.0,0.00057534,90]
[357105570,1743742303771,-443.0,0.00057534,90]
[357105571,1743742303780,-443.0,0.00057534,90]
[357105572,1743742303790,-443.0,0.00057534,90]
[357105573,1743742303799,-443.0,0.00057534,90]
[357105574,1743742303808,-443.0,0.00057534,90]
[357105575,1743742303818,-443.0,0.00057534,90]
[357105576,1743742303828,-443.0,0.00057534,90]
[357105577,1743742303837,-443.0,0.00057534,90]
[357105578,1743742303847,-443.0,0.00057534,90]
[357105579,1743742303856,-443.0,0.00057534,90]
[357105580,1743742303866,-443.0,0.00057534,90]
[357105581,1743742303875,-443.0,0.00057534,90]
[357105582,1743742303889,-443.0,0.00057534,90]
[357105583,1743742303898,-443.0,0.00057534,90]
[357105584,1743742303907,-443.0,0.00057534,90]
[357105585,1743742303917,-443.0,0.00057534,90]
[357105586,1743742303927,-443.0,0.00057534,90]
[357105587,1743742303937,-443.0,0.00057534,90]
[357105588,1743742303946,-443.0,0.00057534,90]
[357105589,1743742303955,-443.0,0.00057534,90]
[357105590,1743742303966,-443.0,0.00057534,90]
[357105591,1743742303976,-443.0,0.00057534,90]
[357105592,1743742303985,-443.0,0.00057534,90]
[357105593,1743742303995,-443.0,0.00057534,90]
[357105594,1743742304004,-443.0,0.00057534,90]
[357105595,1743742304013,-443.0,0.00057534,90]
[357105596,1743742304022,-443.0,0.00057534,90]
[357105597,1743742304032,-443.0,0.00057534,90]
[357105598,1743742304042,-443.0,0.00057534,90]
[357105599,1743742304051,-443.0,0.00057534,90]
[357105600,1743742304060,-443.0,0.00057534,90]
[357105601,1743742304069,-443.0,0.00057534,90]
[357105602,1743742304078,-443.0,0.00057534,90]
[357105603,1743742304087,-443.0,0.00057534,90]
[357105604,1743742304096,-443.0,0.00057534,90]
[357105605,1743742304105,-443.0,0.00057534,90]
[357105606,1743742304114,-443.0,0.00057534,90]
[357105607,1743742304219,-443.0,0.00057534,90]
[357105608,1743742304237,-443.0,0.00057534,90]
[357105609,1743742304246,-443.0,0.00057534,90]
[357105610,1743742304255,-443.0,0.00057534,90]
[357105611,1743742304265,-443.0,0.00057534,90]
[357105612,1743742304274,-443.0,0.00057534,90]
[357105613,1743742304283,-443.0,0.00057534,90]
[357105614,1743742304292,-443.0,0.00057534,90]
[357105615,1743742304302,-443.0,0.00057534,90]
[357105616,1743742304311,-443.0,0.00057534,90]
[357105617,1743742304321,-443.0,0.00057534,90]
[357105618,1743742304330,-443.0,0.00057534,90]
[357105619,1743742304339,-443.0,0.00057534,90]
[357105620,1743742304349,-443.0,0.00057534,90]
[357105621,1743742304358,-443.0,0.00057534,90]
[357105622,1743742304367,-443.0,0.00057534,90]
[357105623,1743742304377,-443.0,0.00057534,90]
[357105624,1743742304387,-443.0,0.00057534,90]
[357105625,1743742304396,-443.0,0.00057534,90]
[357105626,1743742304405,-443.0,0.00057534,90]
[357105627,1743742304415,-443.0,0.00057534,90]
[357105628,1743742304425,-443.0,0.00057534,90]
[357105629,1743742304434,-443.0,0.00057534,90]
[357105630,1743742304444,-443.0,0.00057534,90]
[357105631,1743742304453,-443.0,0.00057534,90]
[357105632,1743742304463,-443.0,0.00057534,90]
[357105633,1743742304472,-443.0,0.00057534,90]
[357105634,1743742304482,-443.0,0.00057534,90]
[357105635,1743742304491,-443.0,0.00057534,90]
[357105636,1743742304501,-443.0,0.00057534,90]
[357105637,1743742304511,-443.0,0.00057534,90]
[357105638,1743742304521,-443.0,0.00057534,90]
[357105639,1743742304530,-443.0,0.00057534,90]
[357105640,1743742304540,-443.0,0.00057534,90]
[357105641,1743742304550,-443.0,0.00057534,90]
[357105642,1743742304559,-443.0,0.00057534,90]
[357105643,1743742304569,-443.0,0.00057534,90]
[357105644,1743742304579,-443.0,0.00057534,90]
[357105645,1743742304589,-443.0,0.00057534,90]
[357105646,1743742304599,-443.0,0.00057534,90]
[357105647,1743742304609,-443.0,0.00057534,90]
[357105648,1743742304619,-443.0,0.00057534,90]
[357105649,1743742304629,-443.0,0.00057534,90]
[357105650,1743742304639,-443.0,0.00057534,90]
[357105651,1743742304649,-443.0,0.00057534,90]
[357105652,1743742304659,-443.0,0.00057534,90]
[357105653,1743742304669,-777.68,0.00057534,120]
[357105654,1743742304680,-160.91,0.00057562,120]
[357105655,1743742304689,-1000.0,0.00057999,120]
[357105656,1743742304700,-50000.0,0.00058,58]
[357105657,1743742304709,-500.0,0.00058,120]
[357105658,1743742304719,-1000.0,0.00058,120]
[357105659,1743742304728,-288.38,0.00058,120]
[357105660,1743742304738,-1000000.0,0.00058,120]
[357105661,1743742304748,-9944.0,0.00058,120]
[357105662,1743742304758,-100000.0,0.00058172,120]
[357105663,1743742304767,-300.0,0.00058173,120]
[357105664,1743742304777,-3058352.34,0.0005818,120]
[357105665,1743742304787,-66097.59,0.0005833,10]
[357105666,1743742304797,-69016.98,0.0005833,10]
[357105667,1743742304807,-422.0,0.000584,120]
[357105668,1743742304817,-500.0,0.0005863,120]
[357105669,1743742304827,-150.0,0.000587,120]
[357105670,1743742304837,-10362.459999,0.000588,120]
[357105671,1743742304846,-500.0,0.000588,120]
[357105672,1743742304855,-800.0,0.000588,120]
[357105673,1743742304865,-250.0,0.0005887,120]
[357105674,1743742304874,-2003.0,0.000589,90]
[357105675,1743742304888,-1511.0,0.000589,90]
[357105676,1743742304898,-500.0,0.00058904,120]
[357105677,1743742304907,-50000.0,0.00059,59]
[357105678,1743742304917,-325.0,0.00059,120]
[357105679,1743742304927,-558.81048067,0.00059,30]
[357105680,1743742304937,-500.0,0.00059,120]
[357105681,1743742304947,-10669.8,0.00059,120]
[357105682,1743742304956,-157315.0,0.00059,120]
[357105683,1743742304967,-1050.0,0.00059,2]
[357105684,1743742304977,-571.21239861,0.0005909,2]
[357105685,1743742304986,-557.31997434,0.00059452,120]
[357105686,1743742304996,-1066.0,0.00059535,120]
[357105687,1743742305006,-1054.76,0.00059571,2]
[357105688,1743742305016,-2000.0,0.0005979,32]
[357105689,1743742305026,-2000.0,0.0005986,32]
[357105690,1743742305035,-1662.08629336,0.00059893,120]
[357105691,1743742305044,-5649.87129786,0.000599,120]
[357105692,1743742305058,-499.06,0.00059995,30]
[357105693,1743742305079,-50000.0,0.0006,60]
[357105694,1743742305097,-438.0,0.0006,120]
[357105695,1743742305116,-200.0,0.0006,120]
[357105696,1743742305133,-461.92035597,0.0006,2]
[357105697,1743742305151,-680.0,0.0006,120]
[357105698,1743742305169,-727.84509665,0.0006,120]
[357105699,1743742305190,-8415.50663612,0.0006,120]
[357105700,1743742305208,-494.68603553,0.0006,120]
[357105701,1743742305226,-311.2469222,0.0006,120]
[357105702,1743742305244,-1136.0905125,0.0006,30]
[357105703,1743742305262,-814.62693561,0.0006,120]
[357105704,1743742305275,-13061.15751243,0.0006,120]
[357105705,1743742305295,-150.0,0.0006,30]
[357105706,1743742305307,-521.48096647,0.0006,120]
[357105707,1743742305326,-769.14,0.0006,120]
[357105708,1743742305341,-2667.38,0.0006,120]
[357105709,1743742305358,-11019.17155219,0.0006,120]
[357105710,1743742305372,-25000.0,0.0006,120]
[357105711,1743742305389,-6000.0,0.0006,30]
[357105712,1743742305405,-500.0,0.0006,5]
[357105713,1743742305420,-9944.0,0.0006,120]
[357105714,1743742305435,-1340.38069404,0.0006,111]
[357105715,1743742305449,-151.0,0.00060192,120]
[357105716,1743742305464,-3077.54,0.00060274,120]
[357105717,1743742305479,-478.92,0.000608,120]
[357105718,1743742305495,-550.0,0.000608,120]
[357105719,1743742305509,-600.0,0.00061,120]
[357105720,1743742305525,-1100.0,0.00061,2]
[357105721,1743742305539,-1511.85382735,0.000616,90]
[357105722,1743742305555,-192.41,0.00061629,120]
[357105723,1743742305575,-627.71,0.00061629,120]
[357105724,1743742305590,-500.0,0.00061654,60]
[357105725,1743742305605,-50000.0,0.00062,62]
[357105726,1743742305620,-5000.0,0.00062,120]
[357105727,1743742305635,-9944.0,0.00062,120]
[357105728,1743742305650,-2000.0,0.0006244,32]
[357105729,1743742305665,-1066.0,0.00062512,120]
[357105730,1743742305678,-151.0,0.00062521,120]
[357105731,1743742305694,-400.0,0.00063,120]
[357105732,1743742305708,-1150.0,0.00063,2]
[357105733,1743742305723,-1002.14375085,0.00063014,5]
[357105734,1743742305738,-17880.12194165,0.000634,120]
[357105735,1743742305753,-4502.76440138,0.000637,120]
[357105736,1743742305768,-2000.0,0.00064,110]
[357105737,1743742305783,-1000.0,0.00064,120]
[357105738,1743742305797,-9944.0,0.00064,120]
[357105739,1743742305812,-300000.0,0.0006444,30]
[357105740,1743742305826,-290.48216859,0.000645,120]
[357105741,1743742305840,-538.0497841,0.000645,120]
[357105742,1743742305855,-2033.91724265,0.000649,120]
[357105743,1743742305869,-684.269,0.0006495,120]
[357105744,1743742305886,-5490.07079775,0.00064998,120]
[357105745,1743742305901,-1000.0,0.00064999,120]
[357105746,1743742305915,-50000.0,0.00065,65]
[357105747,1743742305929,-252.31857612,0.00065,2]
[357105748,1743742305943,-743.58259704,0.00065,120]
[357105749,1743742305958,-25000.0,0.00065,120]
[357105750,1743742305972,-1000.0,0.00065,120]
[357105751,1743742305986,-783.24,0.00065,5]
[357105752,1743742306000,-8086.92,0.00065,60]
[357105753,1743742306014,-5150.91353176,0.000655,120]
[357105754,1743742306028,-2000.0,0.000655,120]
[357105755,1743742306042,-1066.0,0.00065637,120]
[357105756,1743742306056,-1000.0,0.00065999,120]
[357105757,1743742306070,-300.0,0.00066,120]
[357105758,1743742306084,-1000.0,0.00066,120]
[357105759,1743742306097,-2000.0,0.00066,120]
[357105760,1743742306111,-149301.61816087,0.00066,30]
[357105761,1743742306125,-9944.0,0.00066,120]
[357105762,1743742306139,-3000.0,0.0006644,32]
[357105763,1743742306153,-1000.0,0.0006655,32]
[357105764,1743742306166,-507.40566356,0.00066707,60]
[357105765,1743742306180,-150.0,0.00066869,120]
[357105766,1743742306194,-239.71995,0.000669,120]
[357105767,1743742306207,-239.59165,0.000669,120]
[357105768,1743742306221,-50000.0,0.00067,67]
[357105769,1743742306234,-1000.0,0.00067,120]
[357105770,1743742306248,-239.71995,0.000672,120]
[357105771,1743742306262,-192.41,0.00067426,120]
[357105772,1743742306275,-627.71,0.00067426,120]
[357105773,1743742306289,-179.63994,0.000675,120]
[357105774,1743742306303,-239.71995,0.000675,120]
[357105775,1743742306316,-151.0,0.00067781,120]
[357105776,1743742306331,-239.71995,0.000678,120]
[357105777,1743742306344,-1000.0,0.00067999,120]
[357105778,1743742306358,-240911.0,0.00068,120]
[357105779,1743742306372,-3244.1711542,0.00068,120]
[357105780,1743742306537,-3973.62761113,0.00068,120]
[357105781,1743742306552,-9944.0,0.00068,120]
[357105782,1743742306563,-239.71995,0.000681,120]
[357105783,1743742306572,-239.71995,0.000684,120]
[357105784,1743742306582,-239.71995,0.000687,120]
[357105785,1743742306592,-777.68,0.00068767,120]
[357105786,1743742306602,-64471.43815359,0.000689,120]
[357105787,1743742306611,-1066.0,0.00068919,120]
[357105788,1743742306620,-237.99,0.00069,60]
[357105789,1743742306630,-179.63996,0.00069,120]
[357105790,1743742306639,-1000.0,0.00069,120]
[357105791,1743742306648,-239.71995,0.00069,120]
[357105792,1743742306659,-367.28825084,0.00069,120]
[357105793,1743742306668,-1044.87,0.00069202,30]
[357105794,1743742306679,-239.71998,0.000693,120]
[357105795,1743742306688,-5000.0,0.000694,30]
[357105796,1743742306698,-491.19,0.00069419,30]
[357105797,1743742306708,-4456.45,0.00069448,30]
[357105798,1743742306718,-2085.77,0.00069458,30]
[357105799,1743742306728,-574.45,0.00069507,30]
[357105800,1743742306738,-482.79,0.00069511,30]
[357105801,1743742306748,-387.97,0.00069648,30]
[357105802,1743742306758,-150.0,0.00069703,30]
[357105803,1743742306767,-160.31,0.00069745,30]
[357105804,1743742306776,-1164.88,0.00069795,30]
[357105805,1743742306786,-141676.43023062,0.0006987,120]
[357105806,1743742306796,-160000.0,0.0006987,120]
[357105807,1743742306806,-164578.8077963,0.0006987,120]
[357105808,1743742306816,-132509.06587889,0.0006987,120]
[357105809,1743742306825,-80000.0,0.0006987,120]
[357105810,1743742306835,-2400.47,0.00069874,30]
[357105811,1743742306845,-160.91,0.00069877,120]
[357105812,1743742306854,-5407.616,0.000699,120]
[357105813,1743742306863,-158.13726351,0.000699,120]
[357105814,1743742306872,-2389.57,0.00069915,30]
[357105815,1743742306884,-20433.75,0.0006994,30]
[357105816,1743742306892,-361.28,0.00069961,30]
[357105817,1743742306902,-125000.0,0.0006999,7]
[357105818,1743742306911,-1000.0,0.00069999,120]
[357105819,1743742306920,-50000.0,0.0007,70]
[357105820,1743742306930,-200.0,0.0007,120]
[357105821,1743742306939,-281.76955417,0.0007,120]
[357105822,1743742306948,-400.14980254,0.0007,120]
[357105823,1743742306958,-19292.85858292,0.0007,120]
[357105824,1743742306967,-200.0,0.0007,120]
[357105825,1743742306976,-1000.0,0.0007,120]
[357105826,1743742306986,-169.0,0.0007,120]
[357105827,1743742306995,-1000.0,0.0007,3]
[357105828,1743742307004,-3169.28,0.0007,120]
[357105829,1743742307013,-738.120125,0.0007,30]
[357105830,1743742307023,-5000.0,0.0007,120]
[357105831,1743742307032,-6000.0,0.0007,30]
[357105832,1743742307042,-9944.0,0.0007,120]
[357105833,1743742307051,-41935.0039194,0.0007015,2]
[357105834,1743742307062,-1000.0,0.00071,120]
[357105835,1743742307071,-1381.31,0.000711,30]
[357105836,1743742307081,-239.51564839,0.00072,30]
[357105837,1743742307091,-37846.5943934,0.00072,7]
[357105838,1743742307100,-130000.0,0.00072,2]
[357105839,1743742307111,-2787.73238855,0.00073,120]
[357105840,1743742307121,-8086.92,0.00073,60]
[357105841,1743742307130,-192.41,0.00073223,120]
[357105842,1743742307140,-627.71,0.00073223,120]
[357105843,1743742307150,-2000.0,0.0007456,32]
[357105844,1743742307159,-1000.0,0.00074999,120]
[357105845,1743742307170,-5000.0,0.00075,120]
[357105846,1743742307179,-34960.0,0.00075,120]
[357105847,1743742307189,-19284.0,0.00075,120]
[357105848,1743742307199,-151.0,0.0007537,120]
[357105849,1743742307208,-420.0,0.00076,120]
[357105850,1743742307218,-150.0,0.00076369,120]
[357105851,1743742307228,-526.5956226,0.000768,120]
[357105852,1743742307238,-2000.0,0.0007685,32]
[357105853,1743742307248,-2000.0,0.000775,120]
[357105854,1743742307258,-2000.0,0.0007765,32]
[357105855,1743742307268,-1039.55059802,0.00078,120]
[357105856,1743742307279,-1000.0,0.00078,120]
[357105857,1743742307288,-1500.0,0.0007869,32]
[357105858,1743742307298,-5364.0,0.00079,30]
[357105859,1743742307308,-192.41,0.00079019,120]
[357105860,1743742307318,-627.71,0.00079019,120]
[357105861,1743742307327,-2000.0,0.0007963,32]
[357105862,1743742307336,-2498.0,0.0007999,99]
[357105863,1743742307346,-1000.0,0.00079999,120]
[357105864,1743742307355,-200.0,0.0008,120]
[357105865,1743742307365,-437.43104065,0.0008,120]
[357105866,1743742307374,-10000.0,0.0008,120]
[357105867,1743742307384,-200.0,0.0008,8]
[357105868,1743742307393,-20000.0,0.0008,90]
[357105869,1743742307402,-195129.8373054,0.0008,2]
[357105870,1743742307412,-527.97418859,0.0008,120]
[357105871,1743742307422,-5000.0,0.0008,120]
[357105872,1743742307432,-8713.6778638,0.0008,120]
[357105873,1743742307442,-777.68,0.0008,120]
[357105874,1743742307451,-151.0,0.00080027,120]
[357105875,1743742307460,-330.77641817,0.000801,30]
[357105876,1743742307470,-8086.92,0.00081,60]
[357105877,1743742307479,-1612.21342241,0.0008137,30]
[357105878,1743742307488,-8713.6778638,0.000815,120]
[357105879,1743742307497,-2000.0,0.00082,120]
[357105880,1743742307507,-160.91,0.00082192,120]
[357105881,1743742307516,-151.0,0.00082959,120]
[357105882,1743742307526,-8713.6778638,0.00083,120]
[357105883,1743742307535,-1076.11,0.00084,120]
[357105884,1743742307544,-5000.0,0.00084,120]
[357105885,1743742307553,-1000.0,0.00084399,120]
[357105886,1743742307563,-1500.0,0.0008444,45]
[357105887,1743742307572,-192.41,0.00084816,120]
[357105888,1743742307582,-627.71,0.00084816,120]
[357105889,1743742307591,-1000.0,0.00084999,120]
[357105890,1743742307600,-412.27248591,0.00085,120]
[357105891,1743742307609,-258.519,0.00085,120]
[357105892,1743742307619,-1000.0,0.00085,2]
[357105893,1743742307628,-269.4900738,0.00085,120]
[357105894,1743742307637,-2711.1717109,0.00085,120]
[357105895,1743742307647,-5000.0,0.00085,120]
[357105896,1743742307657,-2410.0,0.00085,120]
[357105897,1743742307667,-150.0,0.00085869,120]
[357105898,1743742307676,-1749.14083251,0.00085875,103]
[357105899,1743742307685,-2000.0,0.00086,120]
[357105900,1743742307695,-3237.92769635,0.00087,120]
[357105901,1743742307705,-837.0,0.000874,120]
[357105902,1743742307714,-1021.07598551,0.00087434,119]
[357105903,1743742307724,-12966.56870963,0.00087437,119]
[357105904,1743742307733,-12966.56870963,0.00087449,119]
[357105905,1743742307742,-200.0,0.00087457,119]
[357105906,1743742307752,-684.269,0.00087475,120]
[357105907,1743742307762,-337.44042593,0.00087489,119]
[357105908,1743742307772,-12966.56870963,0.00087498,119]
[357105909,1743742307782,-200.0,0.00087504,119]
[357105910,1743742307791,-200.0,0.00087504,119]
[357105911,1743742307800,-1021.07598551,0.00087514,119]
[357105912,1743742307810,-1021.07598551,0.00087527,119]
[357105913,1743742307820,-249.03691429,0.00087531,119]
[357105914,1743742307830,-293.08879903,0.00087539,119]
[357105915,1743742307840,-337.44042593,0.00087556,119]
[357105916,1743742307851,-249.03691429,0.00087565,119]
[357105917,1743742307861,-249.03691429,0.00087573,119]
[357105918,1743742307871,-12966.56870963,0.00087596,119]
[357105919,1743742307882,-337.44042593,0.00087606,119]
[357105920,1743742307892,-12966.56870963,0.00087625,119]
[357105921,1743742307902,-1021.07598551,0.00087626,119]
[357105922,1743742307911,-12966.56870963,0.00087628,119]
[357105923,1743742307921,-337.44042593,0.00087658,119]
[357105924,1743742307931,-8713.6768638,0.0008766,120]
[357105925,1743742307940,-8713.6768638,0.0008766,120]
[357105926,1743742307949,-1096.85227002,0.0008766,120]
[357105927,1743742307959,-337.44042593,0.00087665,119]
[357105928,1743742307969,-200.0,0.00087685,119]
[357105929,1743742307978,-12966.56870963,0.00087716,119]
[357105930,1743742307987,-337.44042593,0.00087718,119]
[357105931,1743742307997,-249.03691429,0.00087723,119]
[357105932,1743742308006,-249.03691429,0.00087724,119]
[357105933,1743742308016,-1021.07598551,0.00087728,119]
[357105934,1743742308025,-200.0,0.00087748,119]
[357105935,1743742308035,-249.03691429,0.00087757,119]
[357105936,1743742308045,-12966.56870963,0.00087758,119]
[357105937,1743742308054,-1021.07598551,0.00087768,119]
[357105938,1743742308064,-337.44042593,0.00087769,119]
[357105939,1743742308074,-249.03691429,0.00087777,119]
[357105940,1743742308083,-249.03691429,0.00087784,119]
[357105941,1743742308092,-337.44042593,0.00087809,119]
[357105942,1743742308102,-337.44042593,0.00087817,119]
[357105943,1743742308111,-200.0,0.00087821,119]
[357105944,1743742308120,-1021.07598551,0.00087832,119]
[357105945,1743742308130,-200.0,0.00087843,119]
[357105946,1743742308139,-1021.07598551,0.00087846,119]
[357105947,1743742308148,-200.0,0.00087866,119]
[357105948,1743742308160,-12966.56870963,0.00087877,119]
[357105949,1743742308169,-249.03691429,0.00087877,119]
[357105950,1743742308178,-1021.07598551,0.00087881,119]
[357105951,1743742308187,-249.03691429,0.00087906,119]
[357105952,1743742308196,-200.0,0.00087917,119]
[357105953,1743742308206,-1021.07598551,0.00087919,119]
[357105954,1743742308215,-12966.56870963,0.00087933,119]
[357105955,1743742308224,-200.0,0.00087952,119]
[357105956,1743742308233,-337.44042593,0.00087956,119]
[357105957,1743742308243,-3000.0,0.0008796,32]
[357105958,1743742308252,-1000.0,0.00088,100]
[357105959,1743742308261,-10034.10866896,0.00088,120]
[357105960,1743742308270,-321.76349058,0.00088,120]
[357105961,1743742308279,-258.0,0.00088,120]
[357105962,1743742308288,-1539.6691529,0.00088,120]
[357105963,1743742308297,-5000.0,0.00088,120]
[357105964,1743742308307,-225.2970668,0.00088,120]
[357105965,1743742308316,-1505.84009196,0.00088,120]
[357105966,1743742308326,-10000.0,0.0008822,120]
[357105967,1743742308336,-10000.0,0.0008822,120]
[357105968,1743742308345,-6162.74164,0.0008822,120]
[357105969,1743742308354,-71424.845071,0.000884,120]
[357105970,1743742308363,-5900.0,0.000885,120]
[357105971,1743742308373,-1306.615,0.000888,120]
[357105972,1743742308382,-1352.13459211,0.0008897,120]
[357105973,1743742308391,-313.34544781,0.00089,120]
[357105974,1743742308400,-1500.0,0.00089,120]
[357105975,1743742308410,-204.90409389,0.00089,120]
[357105976,1743742308419,-24985.24407425,0.000898,120]
[357105977,1743742308428,-3000.0,0.0008989,45]
[357105978,1743742308438,-578.69607225,0.0008989,120]
[357105979,1743742308447,-3970.15292019,0.000899,120]
[357105980,1743742308456,-1000.0,0.00089999,120]
[357105981,1743742308465,-250.0,0.0009,120]
[357105982,1743742308475,-6115.49132992,0.0009,30]
[357105983,1743742308484,-301.53,0.0009,2]
[357105984,1743742308493,-20000.0,0.0009,90]
[357105985,1743742308503,-10087.87190128,0.0009,20]
[357105986,1743742308513,-1500.0,0.0009,120]
[357105987,1743742308522,-215.01,0.0009,120]
[357105988,1743742308531,-699.75843821,0.0009,120]
[357105989,1743742308541,-1000.0,0.0009,120]
[357105990,1743742308550,-5000.0,0.0009,120]
[357105991,1743742308559,-200.0,0.0009,120]
[357105992,1743742308687,-1023.37078853,0.0009,2]
[357105993,1743742308697,-519.30909733,0.0009,120]
[357105994,1743742308707,-500.0,0.0009041,120]
[357105995,1743742308716,-500.0,0.0009041,120]
[357105996,1743742308726,-299.83873118,0.0009041,120]
[357105997,1743742308736,-17692.2169446,0.0009045,60]
[357105998,1743742308745,-1035.98,0.000905,120]
[357105999,1743742308755,-151.0,0.00090548,120]
[357106000,1743742308765,-192.41,0.00090613,120]
[357106001,1743742308774,-627.71,0.00090613,120]
[357106002,1743742308784,-15043.37341323,0.00092,120]
[357106003,1743742308794,-76612.23330337,0.00092,120]
[357106004,1743742308804,-156852.98402959,0.00092,120]
[357106005,1743742308814,-1500.0,0.0009244,32]
[357106006,1743742308824,-117533.40463409,0.0009287,120]
[357106007,1743742308972,-844.70908518,0.0009287,120]
[357106008,1743742308985,-628.52989997,0.0009287,120]
[357106009,1743742308996,-1740.01,0.0009287,120]
[357106010,1743742309007,-18055.54676411,0.0009287,120]
[357106011,1743742309018,-615.40926904,0.0009287,120]
[357106012,1743742309713,-678.43310487,0.0009287,120]
[357106013,1743742309724,-8508.38170162,0.0009287,120]
[357106014,1743742309916,-1575.12,0.0005178,120]
[357106015,1743742309926,-659.29498821,0.00052054,120]
[357106016,1743742309938,-915.82501179,0.00052054,120]
[357106017,1743742309948,-1575.12,0.00052328,120]
[357106018,1743742309958,-1575.12,0.00052602,120]
[357106019,1743742309970,-1575.12,0.00052876,120]
[357106020,1743742309981,-1575.12,0.0005315,120]
[357106021,1743742309989,-1575.12,0.00053424,120]
[357106022,1743742309999,-1575.12,0.00053698,120]
[357106023,1743742310008,-1575.12,0.00053972,120]
[357106024,1743742310018,-1575.12,0.00054246,120]
[357106025,1743742310027,-1575.12,0.0005452,120]
[357106026,1743742310037,-92645.9321408,0.0009287,120]
[357106027,1743742310046,-169350.22084297,0.0009299,30]
[357106028,1743742310056,-982.2654705,0.0009299,30]
[357106029,1743742310065,-5000.0,0.00094,120]
[357106030,1743742310074,-801.42,0.00094049,120]
[357106031,1743742310083,-5000.0,0.00094056,120]
[357106032,1743742310093,-2151.25,0.00094065,120]
[357106033,1743742310103,-3279.05,0.00094129,120]
[357106034,1743742310113,-5000.0,0.00094147,120]
[357106035,1743742310123,-10000.00548846,0.000942,120]
[357106036,1743742310133,-991.8,0.00094271,120]
[357106037,1743742310143,-5000.0,0.00094282,120]
[357106038,1743742310152,-2134.93,0.00094305,120]
[357106039,1743742310161,-3341.88,0.00094309,120]
[357106040,1743742310172,-5000.0,0.00094354,120]
[357106041,1743742310182,-5000.0,0.00094354,120]
[357106042,1743742310192,-5000.0,0.00094377,120]
[357106043,1743742310200,-250000.0,0.000944,30]
[357106044,1743742310209,-1500.0,0.0009444,32]
[357106045,1743742310219,-5000.0,0.00094474,120]